[Event "FIDE Grand Swiss 2023"]
[Site "Villa Marina, Douglas, Isle of Man"]
[Date "2023.11.04"]
[Round "10.40"]
[White "Melkumyan, Hrant"]
[Black "Huschenbeth, Niclas"]
[Result "1/2-1/2"]
[WhiteElo "2650"]
[BlackElo "2605"]
[EventDate "2023.10.25"]
[ECO "D33"]
[PlyCount "108"]
[BlackClock "00:35:59"]
[BlackFideId "24604747"]
[TimeControl "40/100 + 20/50 + 15 + 30s/move"]
[WhiteClock "00:43:23"]
[WhiteFideId "13302485"]

1.c4 {[%clk 01:40:56][%emt 00:00:03]} 1...e6 {[%clk 01:40:52][%emt 00:00:09]} 
2.Nc3 {[%clk 01:39:58][%emt 00:01:28]} 2...c5 {[%clk 01:41:17][%emt 00:00:06]} 
3.Nf3 {[%clk 01:39:58][%emt 00:00:29]} 3...Nf6 {[%clk 01:41:41][%emt 00:00:05]} 
4.g3 {[%clk 01:39:39][%emt 00:00:50]} 4...d5 {[%clk 01:42:03][%emt 00:00:08]} 
5.cxd5 {[%clk 01:39:19][%emt 00:00:49]} 5...exd5 {[%clk 01:42:29][%emt
00:00:04]} 6.d4 {[%clk 01:39:17][%emt 00:00:32]} 6...Nc6 {[%clk 01:42:35][%emt
00:00:24]} 7.Bg2 {[%clk 01:39:12][%emt 00:00:36]} 7...cxd4 {[%clk 01:42:47][%emt
00:00:18]} 8.Nxd4 {[%clk 01:39:34][%emt 00:00:08]} 8...Bc5 {[%clk 01:43:12][%emt
00:00:05]} 9.Nb3 {[%clk 01:38:54][%emt 00:01:10]} 9...Bb6 {[%clk 01:43:18][%emt
00:00:24]} 10.O-O {[%clk 01:39:14][%emt 00:00:10]} 10...d4 {[%clk 01:41:55][%emt
00:01:53]} 11.Na4 {[%clk 01:39:38][%emt 00:00:07]} 11...O-O {[%clk
01:42:16][%emt 00:00:09]} 12.Bg5 {[%clk 01:40:01][%emt 00:00:06]} 12...h6 
{[%clk 01:42:07][%emt 00:00:38]} 13.Bxf6 {[%clk 01:38:29][%emt 00:02:03]} 
13...Qxf6 {[%clk 01:41:50][%emt 00:00:47]} 14.Nxb6 {[%clk 01:36:22][%emt
00:02:36]} 14...axb6 {[%clk 01:42:15][%emt 00:00:05]} 15.Bxc6 {[%clk
01:35:54][%emt 00:00:59]} 15...bxc6 {[%clk 01:42:40][%emt 00:00:05]} 16.Qxd4 
{[%clk 01:36:15][%emt 00:00:09]} 16...Rd8 {[%clk 01:42:55][%emt 00:00:15]} 
17.Qxf6 {[%clk 01:36:02][%emt 00:00:42]} 17...gxf6 {[%clk 01:43:21][%emt
00:00:05]} 18.f3 {[%clk 01:25:50][%emt 00:10:41]} 18...Be6 {[%clk 01:26:33][%emt
00:17:18]} 19.Kf2 {[%clk 01:15:54][%emt 00:10:25]} 19...Ra4 {[%clk
01:17:26][%emt 00:09:39]} 20.Nc1 {[%clk 01:11:08][%emt 00:05:16]} 20...c5 
{[%clk 01:03:23][%emt 00:14:33]} 21.b3 {[%clk 01:00:41][%emt 00:10:56]} 
21...Ra3 {[%clk 01:01:55][%emt 00:01:59]} 22.Nd3 {[%clk 00:58:23][%emt
00:02:47]} 22...Rda8 {[%clk 01:01:44][%emt 00:00:42]} 23.Nf4 {[%clk
00:58:12][%emt 00:00:40]} 23...Rxa2 {[%clk 00:56:37][%emt 00:05:38]} 24.Rab1 
{[%clk 00:54:54][%emt 00:03:48]} 24...Rd2 {[%clk 00:33:31][%emt 00:23:36]} 
25.Rfc1 {[%clk 00:53:40][%emt 00:01:44]} 25...Raa2 {[%clk 00:24:43][%emt
00:09:18]} 26.g4 {[%clk 00:41:04][%emt 00:13:05]} 26...Kf8 {[%clk 00:22:22][%emt
00:02:50]} 27.Rc3 {[%clk 00:33:26][%emt 00:08:09]} 27...Rdb2 {[%clk
00:12:17][%emt 00:10:36]} 28.Rd1 {[%clk 00:26:30][%emt 00:07:25]} 28...Rd2 
{[%clk 00:12:28][%emt 00:00:19]} 29.Rxd2 {[%clk 00:24:38][%emt 00:02:22]} 
29...Rxd2 {[%clk 00:12:54][%emt 00:00:05]} 30.b4 {[%clk 00:24:58][%emt
00:00:10]} 30...cxb4 {[%clk 00:09:56][%emt 00:03:28]} 31.Rc6 {[%clk
00:25:22][%emt 00:00:05]} 31...Ba2 {[%clk 00:07:04][%emt 00:03:23]} 32.Ke3 
{[%clk 00:19:39][%emt 00:06:13]} 32...Rd1 {[%clk 00:06:08][%emt 00:01:27]} 
33.Rxb6 {[%clk 00:18:25][%emt 00:01:44]} 33...b3 {[%clk 00:06:21][%emt
00:00:16]} 34.Nd3 {[%clk 00:13:53][%emt 00:05:01]} 34...Ke7 {[%clk
00:04:21][%emt 00:02:30]} 35.h4 {[%clk 00:13:50][%emt 00:00:34]} 35...Kd7 
{[%clk 00:02:03][%emt 00:02:48]} 36.Nc5+ {[%clk 00:10:27][%emt 00:03:52]} 
36...Kc7 {[%clk 00:01:19][%emt 00:01:15]} 37.Rb4 {[%clk 00:10:50][%emt
00:00:06]} 37...Rc1 {[%clk 00:01:25][%emt 00:00:25]} 38.Ne4 {[%clk
00:10:59][%emt 00:00:21]} 38...Rc6 {[%clk 00:01:03][%emt 00:00:52]} 39.Nd2 
{[%clk 00:07:48][%emt 00:03:41]} 39...Kd7 {[%clk 00:01:16][%emt 00:00:17]} 
40.Kf4 {[%clk 00:03:41][%emt 00:04:36]} 40...Ke7 {[%clk 00:01:07][%emt
00:00:40]} 41.Nxb3 {[%clk 00:44:22][%emt 00:09:49]} 41...Bxb3 {[%clk
00:51:30][%emt 00:00:06]} 42.Rxb3 {[%clk 00:44:41][%emt 00:00:11]} 42...Kf8 
{[%clk 00:51:10][%emt 00:00:51]} 43.Rb5 {[%clk 00:45:05][%emt 00:00:06]} 
43...Kg7 {[%clk 00:50:34][%emt 00:01:06]} 44.e4 {[%clk 00:45:10][%emt 00:00:25]} 
44...Rc3 {[%clk 00:50:00][%emt 00:01:04]} 45.Rf5 {[%clk 00:44:38][%emt
00:01:02]} 45...Kg6 {[%clk 00:48:45][%emt 00:01:45]} 46.g5 {[%clk 00:44:44][%emt
00:00:24]} 46...hxg5+ {[%clk 00:49:05][%emt 00:00:10]} 47.hxg5 {[%clk
00:45:10][%emt 00:00:03]} 47...fxg5+ {[%clk 00:49:28][%emt 00:00:07]} 48.Rxg5+ 
{[%clk 00:45:38] [%emt 00:00:03]} 48...Kf6 {[%clk 00:49:49] [%emt 00:00:09]} 
49.Kg4 {[%clk 00:44:59][%emt 00:01:08]} 49...Rc4 {[%clk 00:42:25] [%emt
00:07:54]} 50.Ra5 {[%clk 00:44:39][%emt 00:00:51]} 50...Kg6 {[%clk
00:41:27][%emt 00:01:28]} 51.Rg5+ {[%clk 00:44:33][%emt 00:00:36]} 51...Kf6 
{[%clk 00:42:25][%emt 00:07:54]} 52.Kf4 {[%clk 00:44:58][%emt 00:00:04]} 
52...Rc3 {[%clk 00:38:08] [%emt 00:04:14]} 53.Ra5 {[%clk 00:45:02][%emt
00:00:26]} 53...Kg6 {[%clk 00:36:36][%emt 00:02:03]} 54.Rg5+ {[%clk
00:45:38][%emt 00:00:03]} 54...Kf6 {[%clk 00:49:49][%emt 00:00:09]} 1/2-1/2

[Event "FIDE Grand Swiss 2023"]
[Site "Villa Marina, Douglas, Isle of Man"]
[Date "2023.11.04"]
[Round "10.41"]
[White "Svane, Rasmus"]
[Black "Bachmann, Axel"]
[Result "0-1"]
[WhiteElo "2646"]
[BlackElo "2604"]
[EventDate "2023.10.25"]
[ECO "A30"]
[PlyCount "94"]
[BlackFideId "3700488"]
[TimeControl "40/100 + 20/50 + 15 + 30s/move"]
[WhiteFideId "4657101"]

1.Nf3 {[%clk 01:40:55][%emt 00:00:04]} 1...Nf6 {[%clk 01:40:11][%emt 00:00:50]} 
2.c4 {[%clk 01:41:10][%emt 00:00:15]} 2...b6 {[%clk 01:40:17][%emt 00:00:25]} 
3.g3 {[%clk 01:39:31][%emt 00:02:08]} 3...Bb7 {[%clk 01:40:38][%emt 00:00:09]} 
4.Bg2 {[%clk 01:37:53][%emt 00:02:08]} 4...c5 {[%clk 01:38:39][%emt 00:02:30]} 
5.O-O {[%clk 01:37:48][%emt 00:00:34]} 5...g6 {[%clk 01:38:14][%emt 00:00:54]} 
6.d4 {[%clk 01:37:53][%emt 00:00:26]} 6...cxd4 {[%clk 01:38:38][%emt 00:00:06]} 
7.Qxd4 {[%clk 01:38:16]} ( 7.Qd2 {[%emt 00:00:07]} 7...d3 8.Qxd3 {[%clk
01:38:16]} 8...d6 {[%clk 01:38:52][%emt 00:00:17]} 9.Qd4 {[%clk 01:38:38]} 
9...Nbd7 {[%clk 01:39:17][%emt 00:00:12]} 10.Nc3 {[%clk 01:37:06]} 10...Rc8 
{[%clk 01:39:09][%emt 00:02:40]} 11.Be3 {[%clk 01:34:45]} 11...Bg7 {[%clk
01:38:33][%emt 00:03:57]} 12.Rac1 {[%clk 01:34:56]} 12...h6 {[%clk
01:31:11][%emt 00:08:11]} 13.Rfd1 {[%clk 01:29:50]} 13...O-O {[%clk
01:30:30][%emt 00:06:45]} 14.b3 {[%clk 01:29:18]} 14...Ng4 {[%clk 01:28:20][%emt
00:03:44]} 15.Qd2 {[%clk 01:27:15]} 15...Ngf6 {[%clk 01:27:40][%emt 00:03:42]} 
16.Ne1 {[%clk 01:06:03][%emt 00:24:14]} ( 16.Bd4 ) 16...h5 {[%clk 01:18:47]} 
17.Bh3 {[%clk 00:56:51][%emt 00:17:34]} 17...Qc7 {[%clk 01:14:36]} 18.Nd3 
{[%clk 00:54:10][%emt 00:07:52]} 18...Qb8 {[%clk 01:10:57]} 19.Bh6 {[%clk
00:50:25][%emt 00:08:24]} 19...Rcd8 {[%clk 01:01:47]} 20.Bxg7 {[%clk
00:50:49][%emt 00:09:47]} 20...Rfe8 {[%clk 01:02:13]} 21.Nf4 {[%clk 00:50:46]} 
21...Kxg7 {[%clk 01:01:00]} 22.Bxd7 {[%clk 00:35:05][%emt 00:17:54]} 22...h4 
23.Bxe8 Rxe8 {[%clk 00:54:05]} 24.Ncd5 {[%clk 00:25:48] [%emt 00:09:47]} ) 
7...d6 {[%clk 01:38:52][%emt 00:00:24]} 8.Nc3 {[%clk 01:38:38][%emt 00:00:07]} 
8...Nbd7 {[%clk 01:39:17][%emt 00:00:05]} 9.Be3 {[%clk 01:37:06][%emt 00:02:02]} 
9...Rc8 {[%clk 01:39:09][%emt 00:00:38]} 10.Rac1 {[%clk 01:34:45][%emt
00:02:51]} 10...Bg7 {[%clk 01:38:33][%emt 00:01:06]} 11.Rfd1 {[%clk
01:34:56][%emt 00:00:18]} 11...h6 {[%clk 01:31:11][%emt 00:07:53]} 12.b3 {[%clk
01:29:50][%emt 00:05:35]} 12...O-O {[%clk 01:30:30][%emt 00:01:11]} 13.Qd2 
{[%clk 01:29:18] [%emt 00:01:03]} 13...Ng4 {[%clk 01:28:20][%emt 00:02:40]} 
14.Bd4 {[%clk 01:27:15][%emt 00:02:33]} 14...Ngf6 {[%clk 01:27:40][%emt
00:01:09]} 15.Be3 {[%clk 01:12:48][%emt 00:14:58]} 15...h5 {[%clk 01:26:09][%emt
00:02:01]} 16.Ne1 {[%clk 01:06:03][%emt 00:07:15]} 16...Qc7 {[%clk
01:18:47][%emt 00:07:52]} 17.Bh3 {[%clk 00:56:51][%emt 00:09:42]} 17...Qb8 
{[%clk 01:14:36][%emt 00:04:41]} 18.Nd3 {[%clk 00:54:10][%emt 00:03:11]} 
18...Rcd8 {[%clk 01:10:57][%emt 00:04:09]} 19.Bh6 {[%clk 00:50:25][%emt
00:04:15]} 19...Rfe8 {[%clk 01:01:47][%emt 00:09:40]} 20.Bxg7 {[%clk
00:50:49][%emt 00:00:07]} 20...Kxg7 {[%clk 01:02:13][%emt 00:00:04]} 21.Nf4 
{[%clk 00:50:46][%emt 00:00:32]} 21...h4 {[%clk 01:01:00][%emt 00:01:43]} 
22.Bxd7 {[%clk 00:35:05][%emt 00:16:11]} 22...Rxd7 {[%clk 00:54:05][%emt
00:07:25]} 23.Ncd5 {[%clk 00:25:48][%emt 00:09:47]} 23...hxg3 {[%clk
00:51:32][%emt 00:03:03]} 24.hxg3 {[%clk 00:25:25][%emt 00:00:53]} 24...Rh8 
{[%clk 00:50:17][%emt 00:01:44]} 25.f3 {[%clk 00:24:56][%emt 00:00:59]} 
25...Ne8 {[%clk 00:48:19][%emt 00:02:29]} 26.Kg2 {[%clk 00:20:53][%emt
00:04:33]} 26...e5 {[%clk 00:44:56][%emt 00:03:53]} 27.Rh1 {[%clk 00:14:59][%emt
00:06:24]} 27...Rxh1 {[%clk 00:43:12][%emt 00:02:14]} 28.Rxh1 {[%clk
00:15:25][%emt 00:00:04]} 28...exf4 {[%clk 00:43:25][%emt 00:00:17]} 29.Qd4+ 
{[%clk 00:14:04][%emt 00:01:51]} 29...f6 {[%clk 00:43:39][%emt 00:00:16]} 
30.Nxf4 {[%clk 00:07:35][%emt 00:06:59]} 30...Re7 {[%clk 00:43:23][%emt
00:00:46]} 31.Qd3 {[%clk 00:03:20][%emt 00:04:46]} 31...f5 {[%clk 00:43:34][%emt
00:00:18]} 32.g4 {[%clk 00:03:29][%emt 00:00:21]} 32...Re5 {[%clk 00:37:24][%emt
00:06:39]} 33.gxf5 {[%clk 00:02:30][%emt 00:01:31]} 33...Rxf5 {[%clk
00:35:30][%emt 00:02:23]} 34.Ne6+ {[%clk 00:02:46][%emt 00:00:14]} 34...Kf7 
{[%clk 00:34:28][%emt 00:01:32]} 35.Qe3 {[%clk 00:02:41][%emt 00:00:35]} 
35...Re5 {[%clk 00:30:36][%emt 00:04:22]} 36.Ng5+ {[%clk 00:02:59][%emt
00:00:12]} 36...Kg7 {[%clk 00:29:47][%emt 00:01:19]} 37.Ne4 {[%clk
00:01:56][%emt 00:01:33]} 37...Bxe4 {[%clk 00:28:08][%emt 00:02:09]} 38.Qh6+ 
{[%clk 00:02:19][%emt 00:00:08]} 38...Kf7 {[%clk 00:28:13][%emt 00:00:25]} 
39.Qh8 {[%clk 00:00:57][%emt 00:01:51]} 39...Ke7 {[%clk 00:26:56][%emt
00:01:46]} 40.fxe4 {[%clk 00:00:46][%emt 00:00:42]} 40...Qa8 {[%clk
00:26:46][%emt 00:00:40]} 41.Qh7+ {[%clk 00:39:23][%emt 00:11:52]} 41...Kd8 
{[%clk 01:16:59][%emt 00:00:18]} 42.Qxg6 {[%clk 00:39:45][%emt 00:00:08]} 
42...Rxe4 {[%clk 01:16:32][%emt 00:00:57]} 43.Kf2 {[%clk 00:32:41][%emt
00:07:33]} 43...Rxe2+ {[%clk 01:15:10][%emt 00:01:53]} 44.Kxe2 {[%clk
00:32:59][%emt 00:00:13]} 44...Qxh1 {[%clk 01:15:37][%emt 00:00:03]} 45.Qg5+ 
{[%clk 00:32:46][%emt 00:00:42]} 45...Kc8 {[%clk 01:15:27][%emt 00:00:40]} 
46.Qe7 {[%clk 00:32:33][%emt 00:00:43]} 46...Qh5+ {[%clk 01:14:21][%emt
00:01:35]} 47.Kd3 {[%clk 00:32:05][%emt 00:00:56]} 47...Nc7 {[%clk
01:14:07][%emt 00:00:47]} 0-1

[Event "FIDE Grand Swiss 2023"]
[Site "Villa Marina, Douglas, Isle of Man"]
[Date "2023.11.04"]
[Round "10.42"]
[White "Rodrigue-Lemieux, Shawn"]
[Black "Warmerdam, Max"]
[Result "1-0"]
[WhiteElo "2488"]
[BlackElo "2636"]
[EventDate "2023.10.25"]
[ECO "B47"]
[PlyCount "55"]
[BlackClock "00:31:59"]
[BlackFideId "1048104"]
[TimeControl "40/100 + 20/50 + 15 + 30s/move"]
[WhiteClock "00:35:36"]
[WhiteFideId "2620049"]

1.e4 {[%clk 01:40:56][%emt 00:00:03]} 1...c5 {[%clk 01:40:54][%emt 00:00:06]} 
2.Nf3 {[%clk 01:41:17][%emt 00:00:09]} 2...e6 {[%clk 01:41:12][%emt 00:00:12]} 
3.d4 {[%clk 01:41:22][%emt 00:00:26]} 3...cxd4 {[%clk 01:41:36][%emt 00:00:06]} 
4.Nxd4 {[%clk 01:41:47][%emt 00:00:04]} 4...Nc6 {[%clk 01:41:59][%emt 00:00:08]} 
5.Nc3 {[%clk 01:42:02][%emt 00:00:14]} 5...Qc7 {[%clk 01:42:19][%emt 00:00:10]} 
6.g3 {[%clk 01:42:09][%emt 00:00:23]} 6...h5 {[%clk 01:42:41][%emt 00:00:08]} 
7.Bg2 {[%clk 01:38:02][%emt 00:04:37]} 7...h4 {[%clk 01:43:01][%emt 00:00:10]} 
8.O-O {[%clk 01:37:48][%emt 00:00:44]} 8...a6 {[%clk 01:42:50][%emt 00:00:42]} 
9.Re1 {[%clk 01:37:41][%emt 00:00:37]} 9...d6 {[%clk 01:42:59][%emt 00:00:21]} 
10.Nxc6 {[%clk 01:35:33][%emt 00:02:38]} 10...bxc6 {[%clk 01:43:22][%emt
00:00:07]} 11.e5 {[%clk 01:34:43][%emt 00:01:19]} 11...d5 {[%clk 01:42:39][%emt
00:01:14]} 12.Na4 {[%clk 01:34:45][%emt 00:00:27]} 12...Bb7 {[%clk
01:43:00][%emt 00:00:09]} 13.c4 {[%clk 01:33:23][%emt 00:01:51]} 13...dxc4 
{[%clk 01:43:24][%emt 00:00:07]} 14.Nc3 {[%clk 01:19:18][%emt 00:14:36]} 
14...Ne7 {[%clk 01:21:34][%emt 00:22:20]} 15.Ne4 {[%clk 01:16:30][%emt
00:03:17]} 15...Nd5 {[%clk 01:18:52][%emt 00:03:12]} 16.Bg5 {[%clk
01:09:49][%emt 00:07:11]} 16...hxg3 {[%clk 01:17:18][%emt 00:02:04]} 17.hxg3 
{[%clk 01:10:09][%emt 00:00:10]} 17...Qxe5 {[%clk 00:54:25][%emt 00:23:23]} 
18.Nf6+ {[%clk 01:09:52][%emt 00:00:48]} 18...gxf6 {[%clk 00:54:50][%emt
00:00:04]} 19.Rxe5 {[%clk 01:10:13][%emt 00:00:09]} 19...fxe5 {[%clk
00:55:17][%emt 00:00:03]} 20.Qa4 {[%clk 01:00:18][%emt 00:10:25]} 20...Bd6 
{[%clk 00:53:23][%emt 00:02:24]} 21.Rd1 {[%clk 00:59:40][%emt 00:01:08]} 
21...Kf8 {[%clk 00:47:55][%emt 00:05:59]} 22.Qxc4 {[%clk 00:51:37][%emt
00:08:33]} 22...f5 {[%clk 00:47:51][%emt 00:00:33]} 23.Rd3 {[%clk 00:44:45][%emt
00:07:22]} 23...Rh7 {[%clk 00:43:31][%emt 00:04:50]} 24.Rb3 {[%clk
00:44:41][%emt 00:00:34]} 24...Rc8 {[%clk 00:43:34][%emt 00:00:27]} 25.Qc2 
{[%clk 00:36:36][%emt 00:08:35]} 25...e4 {[%clk 00:39:56][%emt 00:04:08]} 
26.Bxe4 {[%clk 00:35:33][%emt 00:01:33]} 26...fxe4 {[%clk 00:37:40][%emt
00:02:47]} 27.Qxe4 {[%clk 00:35:54][%emt 00:00:09]} 27...Rcc7 {[%clk
00:32:02][%emt 00:06:08]} 28.Qxe6 {[%clk 00:35:36] [%emt 00:00:47]} 1-0

[Event "FIDE Grand Swiss 2023"]
[Site "Villa Marina, Douglas, Isle of Man"]
[Date "2023.11.04"]
[Round "10.43"]
[White "Parligras, Mircea-Emilian"]
[Black "Nguyen, Thai Dai Van"]
[Result "0-1"]
[WhiteElo "2561"]
[BlackElo "2618"]
[EventDate "2023.10.25"]
[ECO "E15"]
[PlyCount "130"]
[BlackClock "00:03:36"]
[BlackFideId "358878"]
[TimeControl "40/100 + 20/50 + 15 + 30s/move"]
[WhiteClock "00:40:11"]
[WhiteFideId "1204297"]

1.d4 {[%clk 01:40:56][%emt 00:00:02]} 1...Nf6 {[%clk 01:40:54][%emt 00:00:07]} 
2.c4 {[%clk 01:41:19][%emt 00:00:06]} 2...e6 {[%clk 01:41:20][%emt 00:00:05]} 
3.Nf3 {[%clk 01:41:40][%emt 00:00:08]} 3...b6 {[%clk 01:41:44][%emt 00:00:07]} 
4.g3 {[%clk 01:41:14][%emt 00:00:56]} 4...Ba6 {[%clk 01:40:36][%emt 00:01:38]} 
5.b3 {[%clk 01:41:04][%emt 00:00:39]} 5...Bb4+ {[%clk 01:40:59][%emt 00:00:07]} 
6.Bd2 {[%clk 01:41:19][%emt 00:00:16]} 6...Be7 {[%clk 01:41:24][%emt 00:00:05]} 
7.Bg2 {[%clk 01:40:58][%emt 00:00:50]} 7...O-O {[%clk 01:40:32][%emt 00:01:22]} 
8.O-O {[%clk 01:40:47][%emt 00:00:42]} 8...d5 {[%clk 01:40:58][%emt 00:00:04]} 
9.cxd5 {[%clk 01:39:53][%emt 00:01:24]} 9...exd5 {[%clk 01:41:22][%emt
00:00:05]} 10.Nc3 {[%clk 01:38:46][%emt 00:01:37]} 10...Nbd7 {[%clk
01:41:30][%emt 00:00:22]} 11.Ne5 {[%clk 01:35:07][%emt 00:04:10]} 11...Bb7 
{[%clk 01:41:47][%emt 00:00:13]} 12.Bf4 {[%clk 01:35:06][%emt 00:00:30]} 
12...Re8 {[%clk 01:40:30][%emt 00:01:47]} 13.Rc1 {[%clk 01:30:25][%emt
00:05:11]} 13...Nf8 {[%clk 01:28:51][%emt 00:12:09]} 14.Nb5 {[%clk
01:19:32][%emt 00:11:24]} 14...c5 {[%clk 01:26:13][%emt 00:03:07]} 15.dxc5 
{[%clk 01:15:07][%emt 00:04:55]} 15...bxc5 {[%clk 01:25:54][%emt 00:00:49]} 
16.Nc4 {[%clk 01:11:42][%emt 00:03:56]} 16...Ne6 {[%clk 01:22:22][%emt
00:04:00]} 17.Nbd6 {[%clk 00:59:53][%emt 00:12:21]} 17...Nxf4 {[%clk
01:12:04][%emt 00:10:48]} 18.Nxb7 {[%clk 00:57:32][%emt 00:02:52]} 18...Qc7 
{[%clk 01:08:57][%emt 00:03:36]} 19.gxf4 {[%clk 00:57:55][%emt 00:00:06]} 
19...Qxb7 {[%clk 01:07:08][%emt 00:02:19]} 20.e3 {[%clk 00:49:33][%emt
00:08:53]} 20...Rad8 {[%clk 01:04:27][%emt 00:03:10]} 21.Ne5 {[%clk
00:48:24][%emt 00:01:40]} 21...Bd6 {[%clk 01:01:18][%emt 00:03:38]} 22.Qc2 
{[%clk 00:44:16][%emt 00:04:39]} 22...Qc7 {[%clk 00:39:22][%emt 00:22:26]} 
23.Rfd1 {[%clk 00:42:49][%emt 00:01:57]} 23...h6 {[%clk 00:27:25][%emt
00:12:28]} 24.h3 {[%clk 00:40:19][%emt 00:02:59]} 24...Rc8 {[%clk 00:22:17][%emt
00:05:39]} 25.Bxd5 {[%clk 00:25:54][%emt 00:14:54]} 25...Bxe5 {[%clk
00:22:41][%emt 00:00:05]} 26.fxe5 {[%clk 00:26:20][%emt 00:00:05]} 26...Nxd5 
{[%clk 00:18:39][%emt 00:04:33]} 27.Rxd5 {[%clk 00:26:45][%emt 00:00:04]} 
27...Rxe5 {[%clk 00:19:03][%emt 00:00:07]} 28.Qc4 {[%clk 00:24:45][%emt
00:02:29]} 28...Rxd5 {[%clk 00:17:08][%emt 00:02:25]} 29.Qxd5 {[%clk
00:25:09][%emt 00:00:05]} 29...Qa5 {[%clk 00:16:27][%emt 00:01:11]} 30.Qd7 
{[%clk 00:21:06][%emt 00:04:33]} 30...Rb8 {[%clk 00:11:31][%emt 00:05:26]} 
31.Qd6 {[%clk 00:19:43][%emt 00:01:54]} 31...Rb6 {[%clk 00:11:00][%emt
00:01:01]} 32.Qxc5 {[%clk 00:17:41][%emt 00:02:32]} 32...Qxa2 {[%clk
00:10:22][%emt 00:01:08]} 33.Qc8+ {[%clk 00:17:17][%emt 00:00:54]} 33...Kh7 
{[%clk 00:10:51][%emt 00:00:01]} 34.Qc2+ {[%clk 00:17:41][%emt 00:00:06]} 
34...Rg6+ {[%clk 00:10:22][%emt 00:00:58]} 35.Kh2 {[%clk 00:17:43][%emt
00:00:28]} 35...Qa5 {[%clk 00:08:00][%emt 00:02:52]} 36.Rg1 {[%clk
00:17:46][%emt 00:00:28]} 36...Qe5+ {[%clk 00:08:01] [%emt 00:00:30]} 37.Kh1 
{[%clk 00:15:33] [%emt 00:02:42]} 37...Qd5+ {[%clk 00:06:50] [%emt 00:01:40]} 
38.Kh2 {[%clk 00:15:57] [%emt 00:00:06]} 38...Qe5+ {[%clk 00:08:01][%emt
00:00:30]} 39.Kh1 {[%clk 00:15:33][%emt 00:02:42]} 39...Qd5+ {[%clk
00:06:50][%emt 00:01:40]} 40.Kh2 {[%clk 00:15:57][%emt 00:00:06]} 40...f5 
{[%clk 00:01:31][%emt 00:02:25]} 41.Rxg6 {[%clk 00:17:04][%emt 00:00:11]} 
41...Kxg6 {[%clk 00:01:58][%emt 00:00:02]} 42.Kg3 {[%clk 00:12:34][%emt
00:05:00]} 42...Qe5+ {[%clk 00:40:57][%emt 00:11:31]} 43.Kh4 {[%clk
00:53:28][%emt 00:09:37]} 43...Qh2 {[%clk 00:05:05][%emt 00:36:22]} 44.Qc6+ 
{[%clk 00:51:21][%emt 00:02:36]} 44...Kh7 {[%clk 00:05:34][%emt 00:00:01]} 
45.Qf3 {[%clk 00:51:41][%emt 00:00:12]} 45...Qe5 {[%clk 00:05:52] [%emt
00:00:12]} 46.Qc6 {[%emt 00:05:09]} 46...Qb2 {[%clk 00:04:11]} 47.Qf3 {[%clk
00:44:45][%emt 00:04:57]} 47...Qe5 {[%clk 00:05:52][%emt 00:00:12]} 48.Qc6 
{[%clk 00:48:59][%emt 00:03:10]} 48...f4 {[%clk 00:01:01][%emt 00:03:56]} 
49.Qc2+ {[%clk 00:41:44][%emt 00:03:54]} 49...g6 {[%clk 00:01:24][%emt
00:00:08]} 50.Kg4 {[%clk 00:42:09][%emt 00:00:03]} 50...fxe3 {[%clk
00:01:22][%emt 00:00:33]} 51.fxe3 {[%clk 00:42:34][%emt 00:00:04]} 51...Qxe3 
{[%clk 00:00:36][%emt 00:01:17]} 52.Qc7+ {[%clk 00:42:36][%emt 00:00:27]} 
52...Kg8 {[%clk 00:01:03][%emt 00:00:05]} 53.b4 {[%clk 00:41:10][%emt 00:01:55]} 
53...h5+ {[%clk 00:00:39][%emt 00:00:54]} 54.Kh4 {[%clk 00:41:35][%emt
00:00:05]} 54...Kf8 {[%clk 00:00:43][%emt 00:00:26]} 55.b5 {[%clk 00:38:03][%emt
00:04:02]} 55...Qe7+ {[%clk 00:00:37][%emt 00:00:36]} 56.Qxe7+ {[%clk
00:38:29][%emt 00:00:04]} 56...Kxe7 {[%clk 00:01:07][%emt 00:00:01]} 57.Kg5 
{[%clk 00:38:32][%emt 00:00:26]} 57...Kf7 {[%clk 00:01:36][%emt 00:00:02]} 
58.Kf4 {[%clk 00:37:38][%emt 00:01:23]} 58...Ke6 {[%clk 00:01:55][%emt
00:00:10]} 59.Kg5 {[%clk 00:38:03][%emt 00:00:05]} 59...Kd5 {[%clk
00:00:55][%emt 00:01:31]} 60.h4 {[%clk 00:38:25][%emt 00:00:08]} 60...Kc5 
{[%clk 00:01:22][%emt 00:00:03]} 61.Kxg6 {[%clk 00:38:53][%emt 00:00:03]} 
61...Kxb5 {[%clk 00:01:47][%emt 00:00:04]} 62.Kxh5 {[%emt 00:00:07]} 62...a5 
{[%clk 00:02:14]} 63.Kg6 {[%clk 00:39:46][%emt 00:00:03]} 63...a4 {[%clk
00:02:41][%emt 00:00:03]} 64.h5 {[%clk 00:40:13][%emt 00:00:03]} 64...a3 {[%clk
00:03:08][%emt 00:00:03]} 65.h6 {[%clk 00:40:40][%emt 00:00:03]} 65...a2 {[%clk
00:03:36][%emt 00:00:03]} 0-1